[Event "*** SCC Grand Prix: Titled Tuesday Blitz"]
[Site "Chess.com"]
[Date "2020.07.07"]
[Round "4"]
[White "N00bM3ster"]
[Black "Manukyan_Artak"]
[Result "1-0"]
[WhiteElo "2602"]
[BlackElo "2345"]
[TimeControl "180+1"]
[EndTime "10:39:56 PDT"]
[Termination "N00bM3ster won by resignation"]

1. e4 {[%clk 0:03:00.9]} 1... c6 {[%clk 0:03:00.2]} 2. d4 {[%clk 0:03:00.5]}
2... d5 {[%clk 0:03:01.1]} 3. exd5 {[%clk 0:03:00.6]} 3... cxd5 {[%clk
0:03:01.1]} 4. Bd3 {[%clk 0:03:01.1]} 4... Nf6 {[%clk 0:03:02]} 5. h3 {[%clk
0:03:00.4]} 5... Nc6 {[%clk 0:03:01.8]} 6. c3 {[%clk 0:03:00]} 6... e6 {[%clk
0:02:58.4]} 7. Nf3 {[%clk 0:02:57.4]} 7... Bd6 {[%clk 0:02:56.6]} 8. Bg5 {[%clk
0:02:41]} 8... h6 {[%clk 0:02:56.1]} 9. Bh4 {[%clk 0:02:32.4]} 9... g5 {[%clk
0:02:55.9]} 10. Bg3 {[%clk 0:02:31.8]} 10... Bxg3 {[%clk 0:02:55.1]} 11. fxg3
{[%clk 0:02:32.7]} 11... Qd6 {[%clk 0:02:53.2]} 12. g4 {[%clk 0:02:24.3]} 12...
Qg3+ {[%clk 0:02:45.6]} 13. Kf1 {[%clk 0:02:23.4]} 13... Ne4 {[%clk 0:02:45.1]}
14. Qe1 {[%clk 0:02:21.1]} 14... f5 {[%clk 0:02:34.8]} 15. Bxe4 {[%clk
0:02:16.5]} 15... Qxe1+ {[%clk 0:02:33.6]} 16. Nxe1 {[%clk 0:02:17.4]} 16...
fxe4 {[%clk 0:02:32.4]} 17. Nc2 {[%clk 0:02:17.1]} 17... e5 {[%clk 0:02:30.8]}
18. Ke2 {[%clk 0:02:14]} 18... b6 {[%clk 0:02:23.5]} 19. Nd2 {[%clk 0:02:12.9]}
19... exd4 {[%clk 0:02:15.1]} 20. Nxd4 {[%clk 0:02:11]} 20... Nxd4+ {[%clk
0:02:08.7]} 21. cxd4 {[%clk 0:02:11.9]} 21... Ba6+ {[%clk 0:02:07.2]} 22. Ke3
{[%clk 0:02:11.5]} 22... Rc8 {[%clk 0:02:05.2]} 23. Rac1 {[%clk 0:02:10.9]}
23... Kd7 {[%clk 0:02:04.8]} 24. Rc3 {[%clk 0:02:08.6]} 24... Rhf8 {[%clk
0:01:49.2]} 25. Rhc1 {[%clk 0:01:59.5]} 25... Rxc3+ {[%clk 0:01:28.2]} 26. bxc3
{[%clk 0:01:58.1]} 26... Rc8 {[%clk 0:01:18.7]} 27. g3 {[%clk 0:01:51.8]} 27...
Bc4 {[%clk 0:01:15.5]} 28. a4 {[%clk 0:01:47.3]} 28... Ke6 {[%clk 0:01:11.7]}
29. a5 {[%clk 0:01:36.2]} 29... b5 {[%clk 0:00:59.7]} 30. Rb1 {[%clk 0:01:28]}
30... a6 {[%clk 0:00:56.5]} 31. h4 {[%clk 0:01:19.9]} 31... Bd3 {[%clk
0:00:55.9]} 32. Rc1 {[%clk 0:01:18.9]} 32... Rf8 {[%clk 0:00:55.4]} 33. hxg5
{[%clk 0:01:15.9]} 33... hxg5 {[%clk 0:00:55.4]} 34. Rh1 {[%clk 0:01:15.9]}
34... Rf6 {[%clk 0:00:50.7]} 35. Rh8 {[%clk 0:01:14.1]} 35... Kd7 {[%clk
0:00:45.5]} 36. Rg8 {[%clk 0:01:12.3]} 36... Rc6 {[%clk 0:00:45.1]} 37. Rxg5
{[%clk 0:01:09.3]} 37... Rxc3 {[%clk 0:00:42.7]} 38. Rxd5+ {[%clk 0:01:08.6]}
38... Kc6 {[%clk 0:00:42.6]} 39. Re5 {[%clk 0:01:02]} 39... b4 {[%clk
0:00:40.8]} 40. d5+ {[%clk 0:00:58.4]} 40... Kd7 {[%clk 0:00:37.2]} 41. Kd4
{[%clk 0:00:55.9]} 41... Rc2 {[%clk 0:00:33.1]} 42. Nxe4 {[%clk 0:00:55.6]}
42... Bxe4 {[%clk 0:00:32.6]} 43. Rxe4 {[%clk 0:00:55.9]} 43... b3 {[%clk
0:00:32.8]} 44. Re3 {[%clk 0:00:56.1]} 44... b2 {[%clk 0:00:30.1]} 45. Rb3
{[%clk 0:00:56.2]} 45... Rg2 {[%clk 0:00:27.3]} 46. Kc5 {[%clk 0:00:50.9]} 46...
Rxg3 {[%clk 0:00:17.6]} 47. Rxb2 {[%clk 0:00:49.8]} 47... Rxg4 {[%clk 0:00:18]}
48. Rb7+ {[%clk 0:00:48.4]} 48... Kc8 {[%clk 0:00:17.4]} 49. Rb6 {[%clk
0:00:48.4]} 1-0

[Event "*** SCC Grand Prix: Titled Tuesday Blitz"]
[Site "Chess.com"]
[Date "2020.07.07"]
[Round "4"]
[White "Irishchessman16"]
[Black "mirochka"]
[Result "1-0"]
[WhiteElo "2426"]
[BlackElo "2115"]
[TimeControl "180+1"]
[EndTime "10:39:57 PDT"]
[Termination "Irishchessman16 won on time"]

1. e3 {[%clk 0:03:00.9]} 1... d5 {[%clk 0:02:58.2]} 2. Nf3 {[%clk 0:02:56.3]}
2... Nf6 {[%clk 0:02:57.3]} 3. b3 {[%clk 0:02:54.6]} 3... Bg4 {[%clk 0:02:53.7]}
4. h3 {[%clk 0:02:53.3]} 4... Bh5 {[%clk 0:02:52.8]} 5. Bb2 {[%clk 0:02:52.1]}
5... Nbd7 {[%clk 0:02:50.4]} 6. Be2 {[%clk 0:02:51.3]} 6... e6 {[%clk
0:02:49.5]} 7. c4 {[%clk 0:02:48.6]} 7... c6 {[%clk 0:02:47.2]} 8. Nc3 {[%clk
0:02:46]} 8... e5 {[%clk 0:02:28.8]} 9. cxd5 {[%clk 0:02:36.8]} 9... cxd5 {[%clk
0:02:27.9]} 10. g4 {[%clk 0:02:37]} 10... Bg6 {[%clk 0:02:26]} 11. g5 {[%clk
0:02:37.1]} 11... Ne4 {[%clk 0:02:10.5]} 12. Nxd5 {[%clk 0:02:33.6]} 12... Nxg5
{[%clk 0:02:07.7]} 13. Nxg5 {[%clk 0:02:31.2]} 13... Qxg5 {[%clk 0:01:43.2]} 14.
Nc7+ {[%clk 0:02:30.2]} 14... Kd8 {[%clk 0:01:42.7]} 15. Nxa8 {[%clk 0:02:31.1]}
15... Bd6 {[%clk 0:01:36.5]} 16. Rc1 {[%clk 0:02:24.2]} 16... f6 {[%clk
0:01:13.4]} 17. Nc7 {[%clk 0:02:13.1]} 17... Bxc7 {[%clk 0:01:12.1]} 18. h4
{[%clk 0:02:10.8]} 18... Qf5 {[%clk 0:01:05.1]} 19. h5 {[%clk 0:02:05.8]} 19...
Bf7 {[%clk 0:01:02]} 20. Bg4 {[%clk 0:02:05.2]} 20... Qd3 {[%clk 0:01:01]} 21.
Be2 {[%clk 0:02:01.5]} 21... Qd6 {[%clk 0:00:59]} 22. d4 {[%clk 0:01:57.7]}
22... Ke7 {[%clk 0:00:47.4]} 23. h6 {[%clk 0:01:55.4]} 23... g6 {[%clk
0:00:42.2]} 24. dxe5 {[%clk 0:01:52.7]} 24... Ba5+ {[%clk 0:00:41.1]} 25. Kf1
{[%clk 0:01:45]} 25... fxe5 {[%clk 0:00:34.6]} 26. Qxd6+ {[%clk 0:01:41.4]}
26... Kxd6 {[%clk 0:00:35.5]} 27. Bb5 {[%clk 0:01:30.1]} 27... Nb6 {[%clk
0:00:29]} 28. Rd1+ {[%clk 0:01:28]} 28... Ke7 {[%clk 0:00:27.2]} 29. Bxe5 {[%clk
0:01:26.5]} 29... Rc8 {[%clk 0:00:24.1]} 30. Bd6+ {[%clk 0:01:25.6]} 30... Ke6
{[%clk 0:00:22.4]} 31. b4 {[%clk 0:01:15.4]} 31... Nd5 {[%clk 0:00:20.4]} 32.
bxa5 {[%clk 0:01:10.4]} 32... Nc3 {[%clk 0:00:20]} 33. Be2 {[%clk 0:00:57.4]}
33... Nxd1 {[%clk 0:00:17.4]} 34. Bg4+ {[%clk 0:00:57.4]} 34... Kxd6 {[%clk
0:00:17]} 35. Bxc8 {[%clk 0:00:57.9]} 35... Nc3 {[%clk 0:00:16.5]} 36. Bxb7
{[%clk 0:00:54.3]} 36... Nxa2 {[%clk 0:00:14.7]} 37. Kg2 {[%clk 0:00:54.4]}
37... Nb4 {[%clk 0:00:13.8]} 38. Rb1 {[%clk 0:00:53.6]} 38... Kc5 {[%clk
0:00:13]} 39. Rd1 {[%clk 0:00:50.1]} 39... Be6 {[%clk 0:00:11.4]} 40. Rd8 {[%clk
0:00:48.7]} 40... Nc6 {[%clk 0:00:10.2]} 41. Bxc6 {[%clk 0:00:45.2]} 41... Kxc6
{[%clk 0:00:09.4]} 42. Rh8 {[%clk 0:00:45.9]} 42... Kb5 {[%clk 0:00:07.3]} 43.
Rxh7 {[%clk 0:00:45.5]} 43... a6 {[%clk 0:00:07.9]} 44. Re7 {[%clk 0:00:44.6]}
44... Bd5+ {[%clk 0:00:07.4]} 45. e4 {[%clk 0:00:45]} 45... Bg8 {[%clk
0:00:07.5]} 46. Rg7 {[%clk 0:00:42.9]} 1-0

[Event "*** SCC Grand Prix: Titled Tuesday Blitz"]
[Site "Chess.com"]
[Date "2020.07.07"]
[Round "4"]
[White "anesar92"]
[Black "Fandorine"]
[Result "1-0"]
[WhiteElo "2734"]
[BlackElo "2874"]
[TimeControl "180+1"]
[EndTime "10:39:59 PDT"]
[Termination "anesar92 won by resignation"]

1. e4 {[%clk 0:03:00.9]} 1... e5 {[%clk 0:02:59.4]} 2. Nf3 {[%clk 0:03:00]} 2...
Nc6 {[%clk 0:02:59.8]} 3. Bb5 {[%clk 0:03:00]} 3... a6 {[%clk 0:02:59.3]} 4. Ba4
{[%clk 0:02:59]} 4... Nf6 {[%clk 0:02:59.4]} 5. O-O {[%clk 0:02:58.8]} 5... Be7
{[%clk 0:02:59.5]} 6. Bxc6 {[%clk 0:02:58.2]} 6... dxc6 {[%clk 0:02:59.5]} 7. d3
{[%clk 0:02:58.1]} 7... Nd7 {[%clk 0:02:59.9]} 8. Nbd2 {[%clk 0:02:56.7]} 8...
f6 {[%clk 0:03:00.3]} 9. Nc4 {[%clk 0:02:54.1]} 9... Nc5 {[%clk 0:02:57]} 10.
Nh4 {[%clk 0:02:50.7]} 10... g6 {[%clk 0:02:57.1]} 11. f4 {[%clk 0:02:46]} 11...
exf4 {[%clk 0:02:53.6]} 12. Bxf4 {[%clk 0:02:46.9]} 12... Ne6 {[%clk 0:02:40.5]}
13. Bh6 {[%clk 0:02:39.6]} 13... a5 {[%clk 0:02:34.3]} 14. Kh1 {[%clk
0:02:36.2]} 14... a4 {[%clk 0:02:33.7]} 15. Qf3 {[%clk 0:02:20.9]} 15... Nd4
{[%clk 0:02:31.9]} 16. Qf2 {[%clk 0:02:19.8]} 16... Be6 {[%clk 0:02:22.3]} 17.
Ne3 {[%clk 0:02:08.9]} 17... Rg8 {[%clk 0:02:07.4]} 18. c3 {[%clk 0:02:03.4]}
18... Nb5 {[%clk 0:02:07.4]} 19. d4 {[%clk 0:02:03.8]} 19... a3 {[%clk
0:01:53.8]} 20. d5 {[%clk 0:01:57.5]} 20... axb2 {[%clk 0:01:42.4]} 21. Qxb2
{[%clk 0:01:55.8]} 21... Bd7 {[%clk 0:01:42.5]} 22. c4 {[%clk 0:01:43.1]} 22...
Nd6 {[%clk 0:01:34.7]} 23. e5 {[%clk 0:01:43.4]} 23... Nf7 {[%clk 0:01:15.7]}
24. exf6 {[%clk 0:01:13]} 24... Nxh6 {[%clk 0:01:14.2]} 25. fxe7 {[%clk
0:01:12.2]} 25... Qxe7 {[%clk 0:01:13.5]} 26. Qxb7 {[%clk 0:01:03.1]} 26... Rd8
{[%clk 0:01:01.7]} 27. dxc6 {[%clk 0:01:03.3]} 27... Bc8 {[%clk 0:00:49.8]} 28.
Qb5 {[%clk 0:00:52.5]} 28... Qxh4 {[%clk 0:00:36.9]} 29. Rae1 {[%clk 0:00:48.5]}
29... Qxe1 {[%clk 0:00:15.9]} 30. Rxe1 {[%clk 0:00:48]} 30... Kf7 {[%clk
0:00:16.3]} 31. Qg5 {[%clk 0:00:41.7]} 31... Kg7 {[%clk 0:00:10.5]} 32. Nd5
{[%clk 0:00:41.4]} 32... Rgf8 {[%clk 0:00:09.1]} 33. h3 {[%clk 0:00:33.2]} 33...
Nf5 {[%clk 0:00:07.3]} 34. g4 {[%clk 0:00:30.9]} 34... h6 {[%clk 0:00:07.2]} 35.
Qd2 {[%clk 0:00:28.9]} 35... Nh4 {[%clk 0:00:02.9]} 36. Re7+ {[%clk 0:00:27.4]}
36... Rf7 {[%clk 0:00:02]} 37. Rxf7+ {[%clk 0:00:24.4]} 37... Kg8 {[%clk
0:00:02.6]} 1-0

[Event "*** SCC Grand Prix: Titled Tuesday Blitz"]
[Site "Chess.com"]
[Date "2020.07.07"]
[Round "4"]
[White "amatatanav"]
[Black "czasnaszachy"]
[Result "1-0"]
[WhiteElo "2427"]
[BlackElo "2246"]
[TimeControl "180+1"]
[EndTime "10:39:59 PDT"]
[Termination "amatatanav won on time"]

1. e4 {[%clk 0:03:00.9]} 1... c5 {[%clk 0:02:59.5]} 2. Ne2 {[%clk 0:03:00.8]}
2... d6 {[%clk 0:02:58.7]} 3. g3 {[%clk 0:02:59.8]} 3... Nc6 {[%clk 0:02:56.9]}
4. Bg2 {[%clk 0:02:57]} 4... g6 {[%clk 0:02:53.8]} 5. c3 {[%clk 0:02:57.2]} 5...
Bg7 {[%clk 0:02:52.8]} 6. d4 {[%clk 0:02:57.4]} 6... cxd4 {[%clk 0:02:52.4]} 7.
cxd4 {[%clk 0:02:58.3]} 7... e6 {[%clk 0:02:52.8]} 8. O-O {[%clk 0:02:56.8]}
8... Nf6 {[%clk 0:02:53.3]} 9. Nbc3 {[%clk 0:02:56.2]} 9... O-O {[%clk
0:02:51.5]} 10. h3 {[%clk 0:02:54.2]} 10... d5 {[%clk 0:02:49.9]} 11. e5 {[%clk
0:02:52]} 11... Nd7 {[%clk 0:02:49.9]} 12. Be3 {[%clk 0:02:45]} 12... Rb8 {[%clk
0:02:49.3]} 13. Qd2 {[%clk 0:02:37.2]} 13... b5 {[%clk 0:02:44.3]} 14. Rfc1
{[%clk 0:02:13.3]} 14... Na5 {[%clk 0:02:15.7]} 15. b3 {[%clk 0:02:10]} 15...
Qb6 {[%clk 0:02:00.8]} 16. h4 {[%clk 0:01:29.3]} 16... Ba6 {[%clk 0:01:41.3]}
17. h5 {[%clk 0:01:01.3]} 17... Rfc8 {[%clk 0:01:40.6]} 18. hxg6 {[%clk
0:00:55.7]} 18... hxg6 {[%clk 0:01:38.9]} 19. Bh6 {[%clk 0:00:43.6]} 19... b4
{[%clk 0:01:28.3]} 20. Na4 {[%clk 0:00:38.3]} 20... Qb5 {[%clk 0:01:16.1]} 21.
Bxg7 {[%clk 0:00:35.8]} 21... Kxg7 {[%clk 0:01:04]} 22. Nf4 {[%clk 0:00:35.6]}
22... Nb6 {[%clk 0:00:48.7]} 23. Rxc8 {[%clk 0:00:32.5]} 23... Rxc8 {[%clk
0:00:46.2]} 24. Nc5 {[%clk 0:00:29.4]} 24... Rxc5 {[%clk 0:00:38.9]} 25. dxc5
{[%clk 0:00:27.4]} 25... Qxc5 {[%clk 0:00:38.9]} 26. Rc1 {[%clk 0:00:27.4]}
26... Qb5 {[%clk 0:00:38]} 27. Bf1 {[%clk 0:00:26.8]} 27... Nac4 {[%clk
0:00:19.7]} 28. bxc4 {[%clk 0:00:26.2]} 28... dxc4 {[%clk 0:00:19.9]} 29. Rb1
{[%clk 0:00:23.3]} 29... Qxe5 {[%clk 0:00:13.7]} 30. Qxb4 {[%clk 0:00:19.9]}
30... g5 {[%clk 0:00:11.5]} 31. Re1 {[%clk 0:00:18.3]} 31... Qd4 {[%clk
0:00:06.9]} 32. Ne2 {[%clk 0:00:17.8]} 32... Qe4 {[%clk 0:00:04.7]} 33. Qc3+
{[%clk 0:00:15.4]} 33... Kg6 {[%clk 0:00:02.9]} 34. Nf4+ {[%clk 0:00:14.2]}
34... gxf4 {[%clk 0:00:01.9]} 35. Rxe4 {[%clk 0:00:14]} 1-0

[Event "*** SCC Grand Prix: Titled Tuesday Blitz"]
[Site "Chess.com"]
[Date "2020.07.07"]
[Round "4"]
[White "SavelievAlexei"]
[Black "rududuyk"]
[Result "1-0"]
[WhiteElo "2386"]
[BlackElo "2094"]
[TimeControl "180+1"]
[EndTime "10:39:59 PDT"]
[Termination "SavelievAlexei won on time"]

1. e4 {[%clk 0:02:58.5]} 1... e6 {[%clk 0:02:59.2]} 2. d4 {[%clk 0:02:58]} 2...
d5 {[%clk 0:02:59.1]} 3. Nd2 {[%clk 0:02:58.6]} 3... Nf6 {[%clk 0:02:58.9]} 4.
e5 {[%clk 0:02:58.6]} 4... Nfd7 {[%clk 0:02:58.6]} 5. f4 {[%clk 0:02:59.1]} 5...
c5 {[%clk 0:02:58.1]} 6. c3 {[%clk 0:02:59.6]} 6... Nc6 {[%clk 0:02:50.1]} 7.
Ngf3 {[%clk 0:02:59.2]} 7... Qb6 {[%clk 0:02:36.5]} 8. Nb3 {[%clk 0:02:57.8]}
8... a5 {[%clk 0:02:26.6]} 9. a4 {[%clk 0:02:55.7]} 9... f6 {[%clk 0:02:07.9]}
10. exf6 {[%clk 0:02:27.1]} 10... Nxf6 {[%clk 0:02:02.8]} 11. Ne5 {[%clk
0:02:26.3]} 11... cxd4 {[%clk 0:01:54.3]} 12. Nxd4 {[%clk 0:02:07]} 12... Nxd4
{[%clk 0:01:47.1]} 13. Qxd4 {[%clk 0:02:07.9]} 13... Bc5 {[%clk 0:01:40.4]} 14.
Qd3 {[%clk 0:01:53.8]} 14... O-O {[%clk 0:01:29.4]} 15. Qb5 {[%clk 0:01:44.3]}
15... Bf2+ {[%clk 0:01:18.7]} 16. Kd1 {[%clk 0:01:43.3]} 16... Qc7 {[%clk
0:01:04.6]} 17. Bd3 {[%clk 0:01:26.3]} 17... Bd7 {[%clk 0:00:57.6]} 18. Qb3
{[%clk 0:01:22.2]} 18... Rac8 {[%clk 0:00:39]} 19. Rf1 {[%clk 0:01:13.3]} 19...
Ba7 {[%clk 0:00:35.1]} 20. Bd2 {[%clk 0:01:05.3]} 20... Ne4 {[%clk 0:00:16.1]}
21. Kc2 {[%clk 0:00:51.9]} 21... Nc5 {[%clk 0:00:14.5]} 22. Qa2 {[%clk 0:00:49]}
22... Bxa4+ {[%clk 0:00:13.5]} 23. Kb1 {[%clk 0:00:42.5]} 23... Nb3 {[%clk
0:00:04.5]} 24. Qxa4 {[%clk 0:00:39]} 24... Nxd2+ {[%clk 0:00:04.5]} 25. Kc2
{[%clk 0:00:39.4]} 25... Nxf1 {[%clk 0:00:05.3]} 26. Rxf1 {[%clk 0:00:40.3]}
26... d4 {[%clk 0:00:05.1]} 27. Qb3 {[%clk 0:00:33.2]} 27... dxc3 {[%clk
0:00:04.7]} 28. bxc3 {[%clk 0:00:33.3]} 28... Kh8 {[%clk 0:00:03.5]} 29. Rf3
{[%clk 0:00:26.7]} 29... Bd4 {[%clk 0:00:02.8]} 30. Nc4 {[%clk 0:00:05]} 1-0

[Event "*** SCC Grand Prix: Titled Tuesday Blitz"]
[Site "Chess.com"]
[Date "2020.07.07"]
[Round "4"]
[White "sergeikim"]
[Black "hongnhung1234"]
[Result "1-0"]
[WhiteElo "2403"]
[BlackElo "2216"]
[TimeControl "180+1"]
[EndTime "10:39:59 PDT"]
[Termination "sergeikim won by checkmate"]

1. d4 {[%clk 0:03:00.9]} 1... Nf6 {[%clk 0:02:54.6]} 2. c4 {[%clk 0:03:00.8]}
2... c5 {[%clk 0:02:52.5]} 3. d5 {[%clk 0:03:00]} 3... b5 {[%clk 0:02:52.7]} 4.
cxb5 {[%clk 0:02:59.1]} 4... a6 {[%clk 0:02:53.1]} 5. b6 {[%clk 0:03:00]} 5...
g6 {[%clk 0:02:52.1]} 6. Nc3 {[%clk 0:03:00.3]} 6... Bg7 {[%clk 0:02:52.4]} 7.
e4 {[%clk 0:03:01]} 7... O-O {[%clk 0:02:49.6]} 8. Nf3 {[%clk 0:03:01.5]} 8...
d6 {[%clk 0:02:47.5]} 9. Be2 {[%clk 0:03:01.5]} 9... Nbd7 {[%clk 0:02:47.2]} 10.
a4 {[%clk 0:02:59.6]} 10... Qxb6 {[%clk 0:02:44.2]} 11. O-O {[%clk 0:02:58.3]}
11... Ng4 {[%clk 0:02:36.2]} 12. Nd2 {[%clk 0:02:57.6]} 12... Nde5 {[%clk
0:02:21]} 13. h3 {[%clk 0:02:52.2]} 13... Nf6 {[%clk 0:02:18.3]} 14. Kh1 {[%clk
0:02:51.3]} 14... Rb8 {[%clk 0:02:09.9]} 15. f4 {[%clk 0:02:49.6]} 15... Ned7
{[%clk 0:02:09.8]} 16. Nc4 {[%clk 0:02:43.2]} 16... Qc7 {[%clk 0:02:00.6]} 17.
Ra3 {[%clk 0:02:36.4]} 17... Nb6 {[%clk 0:01:58.3]} 18. e5 {[%clk 0:02:07.4]}
18... dxe5 {[%clk 0:01:44.9]} 19. fxe5 {[%clk 0:02:06.9]} 19... Nxc4 {[%clk
0:01:25.3]} 20. Bxc4 {[%clk 0:02:02.1]} 20... Ne8 {[%clk 0:01:16.8]} 21. d6
{[%clk 0:01:43.4]} 21... exd6 {[%clk 0:01:14.3]} 22. Nd5 {[%clk 0:01:43.1]}
22... Qd8 {[%clk 0:01:10.4]} 23. Bf4 {[%clk 0:01:16.7]} 23... dxe5 {[%clk
0:01:07.2]} 24. Be3 {[%clk 0:01:12.5]} 24... Be6 {[%clk 0:00:57.2]} 25. Bxc5
{[%clk 0:01:09.8]} 25... Nc7 {[%clk 0:00:46.4]} 26. Bxf8 {[%clk 0:00:58.9]}
26... Bxf8 {[%clk 0:00:47.3]} 27. Nf6+ {[%clk 0:00:55.5]} 27... Kg7 {[%clk
0:00:42.8]} 28. Rd3 {[%clk 0:00:49.9]} 28... Qc8 {[%clk 0:00:29.5]} 29. Bxe6
{[%clk 0:00:47.5]} 29... Nxe6 {[%clk 0:00:29.6]} 30. Nd7 {[%clk 0:00:40.2]}
30... Rxb2 {[%clk 0:00:29.5]} 31. Nxe5 {[%clk 0:00:38.9]} 31... f5 {[%clk
0:00:19.6]} 32. Rd7+ {[%clk 0:00:33.9]} 32... Kh6 {[%clk 0:00:19.6]} 33. Nf7+
{[%clk 0:00:30.2]} 33... Kg7 {[%clk 0:00:18.2]} 34. Nd8+ {[%clk 0:00:24.3]}
34... Kg8 {[%clk 0:00:16.7]} 35. Nxe6 {[%clk 0:00:23.7]} 35... Qc6 {[%clk
0:00:15.1]} 36. Qd5 {[%clk 0:00:19.3]} 36... Qxa4 {[%clk 0:00:11.6]} 37. Nxf8+
{[%clk 0:00:16.6]} 37... Kxf8 {[%clk 0:00:11.5]} 38. Qf7# {[%clk 0:00:16.2]} 1-0

[Event "*** SCC Grand Prix: Titled Tuesday Blitz"]
[Site "Chess.com"]
[Date "2020.07.07"]
[Round "4"]
[White "pavlitas17"]
[Black "Blagorod"]
[Result "1-0"]
[WhiteElo "2290"]
[BlackElo "2088"]
[TimeControl "180+1"]
[EndTime "10:39:59 PDT"]
[Termination "pavlitas17 won by resignation"]

1. d4 {[%clk 0:03:00.9]} 1... d5 {[%clk 0:03:00.1]} 2. c4 {[%clk 0:03:00.7]}
2... Nc6 {[%clk 0:03:00.6]} 3. Nc3 {[%clk 0:02:59]} 3... dxc4 {[%clk 0:02:59.5]}
4. d5 {[%clk 0:02:59.2]} 4... Ne5 {[%clk 0:02:59.6]} 5. f4 {[%clk 0:02:59.5]}
5... Ng4 {[%clk 0:02:59.4]} 6. e4 {[%clk 0:02:58.2]} 6... e5 {[%clk 0:02:59.4]}
7. f5 {[%clk 0:02:57.9]} 7... h5 {[%clk 0:02:58.7]} 8. Bxc4 {[%clk 0:02:54.8]}
8... Bc5 {[%clk 0:02:56.8]} 9. Nf3 {[%clk 0:02:54.7]} 9... Nf2 {[%clk
0:02:28.3]} 10. Qb3 {[%clk 0:02:53.2]} 10... Nxh1 {[%clk 0:02:23]} 11. Qb5+
{[%clk 0:02:51.9]} 11... Bd7 {[%clk 0:02:22.6]} 12. Qxc5 {[%clk 0:02:52.1]}
12... Ne7 {[%clk 0:02:20.6]} 13. Qg1 {[%clk 0:02:51.1]} 13... O-O {[%clk
0:02:19.5]} 14. Qxh1 {[%clk 0:02:51.2]} 14... Nxf5 {[%clk 0:02:15.3]} 15. exf5
{[%clk 0:02:50.7]} 15... Bxf5 {[%clk 0:02:15.8]} 16. Qf1 {[%clk 0:02:43.8]}
16... Bg6 {[%clk 0:01:59.4]} 17. Bg5 {[%clk 0:02:39.5]} 17... Qd6 {[%clk
0:01:57.6]} 18. O-O-O {[%clk 0:02:38.9]} 18... a6 {[%clk 0:01:44]} 19. Nh4
{[%clk 0:02:38.5]} 19... b5 {[%clk 0:01:37.7]} 20. Bd3 {[%clk 0:02:38.2]} 20...
e4 {[%clk 0:01:26.4]} 21. Nxe4 {[%clk 0:02:35.6]} 21... Qxd5 {[%clk 0:01:15.9]}
22. Nxg6 {[%clk 0:02:20.8]} 22... Qc6+ {[%clk 0:01:10.8]} 23. Nc3 {[%clk
0:02:15.5]} 23... fxg6 {[%clk 0:01:10]} 24. Qe2 {[%clk 0:02:13.8]} 24... Rae8
{[%clk 0:01:06.9]} 25. Qc2 {[%clk 0:02:12.9]} 25... Re5 {[%clk 0:00:58.9]} 26.
Ne4 {[%clk 0:02:02]} 26... Qe6 {[%clk 0:00:43.8]} 27. Kb1 {[%clk 0:01:59.5]}
27... Qg4 {[%clk 0:00:38]} 28. h3 {[%clk 0:01:51.3]} 28... Qe6 {[%clk
0:00:34.6]} 29. Bh4 {[%clk 0:01:39.9]} 29... Re8 {[%clk 0:00:29.7]} 30. Bg3
{[%clk 0:01:38.7]} 30... Rxe4 {[%clk 0:00:22.8]} 31. Bxe4 {[%clk 0:01:38.5]}
31... Qxe4 {[%clk 0:00:23.4]} 32. Qxe4 {[%clk 0:01:38.4]} 32... Rxe4 {[%clk
0:00:23.9]} 33. Bxc7 {[%clk 0:01:31.5]} 33... Re2 {[%clk 0:00:23.5]} 34. Rg1
{[%clk 0:01:31]} 34... Kf7 {[%clk 0:00:22.4]} 35. Bg3 {[%clk 0:01:25.6]} 35...
g5 {[%clk 0:00:21.4]} 36. Rf1+ {[%clk 0:01:24.9]} 36... Kg6 {[%clk 0:00:21.1]}
37. Rf2 {[%clk 0:01:22.4]} 37... Re3 {[%clk 0:00:18.9]} 38. Bd6 {[%clk
0:01:20.2]} 38... Re6 {[%clk 0:00:18.1]} 39. Bc5 {[%clk 0:01:18]} 39... Rc6
{[%clk 0:00:18]} 40. b4 {[%clk 0:01:17.2]} 40... a5 {[%clk 0:00:17.1]} 41. a3
{[%clk 0:01:16.9]} 41... axb4 {[%clk 0:00:16.3]} 42. axb4 {[%clk 0:01:16.8]}
42... g4 {[%clk 0:00:16.3]} 43. hxg4 {[%clk 0:01:16.3]} 43... hxg4 {[%clk
0:00:16.4]} 44. Kc2 {[%clk 0:01:15.2]} 44... g3 {[%clk 0:00:16.2]} 45. Rf3
{[%clk 0:01:14.3]} 45... Kh5 {[%clk 0:00:14.2]} 46. Rxg3 {[%clk 0:01:14.1]}
46... g5 {[%clk 0:00:14.7]} 47. Kd3 {[%clk 0:01:13.2]} 47... Kh4 {[%clk
0:00:14.1]} 48. Re3 {[%clk 0:01:08.7]} 48... g4 {[%clk 0:00:13.5]} 49. g3+
{[%clk 0:01:06.9]} 49... Kh3 {[%clk 0:00:12.4]} 50. Kd4 {[%clk 0:01:06.6]} 50...
Rf6 {[%clk 0:00:11.5]} 51. Kd5 {[%clk 0:01:05.2]} 51... Rf5+ {[%clk 0:00:10]}
52. Kc6 {[%clk 0:01:04.4]} 52... Kg2 {[%clk 0:00:09.2]} 53. Kxb5 {[%clk
0:01:02.1]} 53... Rf3 {[%clk 0:00:07.6]} 54. Rxf3 {[%clk 0:01:01.8]} 54... Kxf3
{[%clk 0:00:06.8]} 55. Bd6 {[%clk 0:01:00.8]} 1-0